{"text_format":"2","workbook":"xlsx","n_sheets":2,"sheets":["TÉR 23.02.21.","Pontok"],"not_rendered":{"charts":0,"images":0,"macros":0,"external_links":0,"defined_names":1,"comments":0,"pivot_tables":0},"unopened":[],"bounds":{"document_bytes":16777216,"sheet_cells":100000,"run_cost":"one","rows_first":2000,"rows_last":500,"rows_between":2000,"halvings":0,"cell_chars":16384,"cell_head_chars":4096},"cells_cut":0,"cells_raw":0,"read":"whole","date_system":"1900"}

{"sheet":"TÉR 23.02.21.","index":0,"n_rows":95,"n_cols":14,"rows_kept":95,"cut":false,"hidden":false,"merged":[[3,3,3,4],[31,6,31,12],[23,6,23,12],[10,0,32,0],[32,1,32,4],[10,2,18,2],[19,2,22,2],[10,1,23,1],[23,2,23,4],[34,0,66,0],[24,2,27,2],[34,2,49,2],[50,6,50,12],[51,2,56,2],[58,2,58,4],[51,1,58,1],[58,6,58,12],[66,6,66,12],[65,6,65,12],[34,1,50,1],[50,2,50,4],[29,2,30,2],[24,1,31,1],[31,2,31,4],[68,2,75,2],[66,1,66,4],[59,1,65,1],[59,2,64,2],[65,2,65,4],[0,0,0,5],[1,0,1,5],[85,0,85,4],[85,6,85,12],[69,13,69,19],[68,0,83,0],[83,6,83,12],[83,1,83,4],[76,6,76,12],[82,2,82,4],[82,6,82,12],[77,1,82,1],[68,1,76,1],[77,2,81,2],[76,2,76,4],[32,6,32,12]]}
["SZAOK TÉR PONTSZÁMOK - KLINIKAI"]
["Értékelés: összesen max 100 pont; oktatás max 50, tudomány max 60, elismertség max 25 pont"]
[]
[null,"Oktató-kutató neve:",null,"Pontszám összefoglaló:"]
[null,"beosztása:","Egyetemi tanársegéd","Oktatási teljesítmény",{"$f":"F33","v":0}]
[null,"szervezeti egysége:",null,"Tudományos teljesítmény",{"$f":"F67","v":0}]
[null,"Neptun kódja:",null,"Közéleti teljesítmény",{"$f":"F84","v":0}]
[null,"MTMT azonosítója:",null,"Összesen:",{"$f":"F86","v":0}]
[null,"Orcid azonosító"]
[{"$nulls":4},"Adat","Pontszám"]
["OKTATÁSI TELJESÍTMÉNY","OKTATÁS\n\nKitöltés NEPTUN \nszerint","Graduális oktatás","Előadás, óra / hét (3 év átlagában)",0,{"$f":"E11*1","v":0},"1 pont/heti előadás (idegen nyelvű is). Osztott előadásnál tört érték is lehet."]
[null,null,null,"Szeminárium / gyakorlat, óra / hét (3 év átlagában)",0,{"$f":"E12*0.5","v":0},"0,5 pont/heti szeminárium / gyakorlat (idegen nyelvű is)."]
[null,null,null,"Megvédett szakdolgozati témavezetések száma",0,{"$f":"IF(E13>5,5,E13)","v":0},"1 pont védett szakdolgozatonként, maximum 5 p",{"$nulls":6},"Témavezetők között megosztott pontszám"]
[null,null,null,"Osztályfőnök","Nem",{"$f":"IF(E14=\"Igen\",1,0)","v":0},"0-1","igen/nem"]
[null,null,null,"Tanulmányi felelős (nyelvenként, karonként)",0,{"$f":"VLOOKUP(E15,Pontok!T1:U4,2,TRUE)","v":0},"0-5","Nyelvenként egy: 3p, kettő: 4p, három és felette: 5p"]
[null,null,null,"Tantárgyfelelős (tárgyak száma)",0,{"$f":"VLOOKUP(E16,Pontok!W1:X7,2,1)","v":0},"0-3","1p: 1-2 tárgy, 2p: 2-5 tárgy, 3p: >5 tárgy"]
[null,null,null,"Egyéb felelősség (MTMT felelős, állatetika felelős, kábítószerfelelős, leltárfelelős, stb)","Nem",{"$f":"IF(E17=\"Igen\",1,0)","v":0},"0-1","igen/nem",{"$nulls":5},"Csak kutatással vagy oktatással kapcsolatos egyéb felelősség vehető figyelembe"]
[null,null,null,"Vizsgáztatás (kollokvium, szigorlat)",0,{"$f":"E18","v":0},"0-6","Terhelés mértékéről a tanszékvezető nyilatkozik",{"$nulls":5},"Tanszékvezető megítélése szerint milyen mértékben segítette a vizsgák lebonyolítását (nem féltétlen a vizsgázók száma, tesztelőkészítés, adminisztráció, vizsgafelügyelet)"]
[null,null,null,"Tankönyv, jegyzet, egyéb oktatásfejlesztés, oktatásszervezés","Nem",{"$f":"IF(E19=\"Igen\",3,0)","v":0},"0-3","igen/nem"]
[null,null,"Posztgraduális oktatás","Rezidens képzés, szakképzés, PhD képzés",0,{"$f":"E20*0.5","v":0},"0,5 pont/heti oktatott óra (gyakorlat, előadás, idegen nyelvű oktatás).",{"$nulls":6},"Aggregált mutató: rezidens, szakképzés, PhD kurzusok."]
[null,null,null,"Szakvizsgáztatás","Nem",{"$f":"IF(E21=\"Igen\",1,0)","v":0},"0-1","igen/nem"]
[null,null,null,"Szervezés (kötelező tanfolyamok, továbbképzések)","Nem",{"$f":"IF(E22=\"Igen\",2,0)","v":0},"0-2","igen/nem"]
[null,null,null,"Szakmai grémium vezetés","Nem",{"$f":"IF(E23=\"Igen\",3,0)","v":0},"0-3","igen/nem"]
[null,null,"OKTATÁS ÖSSZESEN",null,null,{"$f":"SUM(F11:F23)","v":0},"Ennek a részeredménynek nincs felső határa, de az Oktatás összpontszáma nem lépheti túl az 50 pontot (lásd 31. sor)"]
[null,"TEHETSÉGGONDOZÁS\n\nNEPTUN ill. Doktori Iskola adatbázisa alapján","TDK hallgatók","Dokumentálható TDK aktivitás (pl. közlemény, konferencia, pályamunka) (db)",0,{"$f":"VLOOKUP(E25,Pontok!$A$1:$B$31,2,1)","v":0},"0-2","0p: =0","0,5p: =0,5","1p: =1-2","2p: >2",null,null,"TDK konferencia esetén a témavezetők között megosztott pontszám. Közlemény, vagy egyéb konferencia esetén az első és utolsó szerző között megosztott pontszám."]
[null,null,null,"Díjazott helyi TDK konferencia előadás (I., II., III. , Különdíj) (db)",0,{"$f":"E26","v":0},"Minden díjazott előadás 1p",{"$nulls":6},"TDK konferencián a témavezetők között megosztott pontszám. "]
[null,null,null,"OTDK díjazott  előadás (I., II., III. , Különdíj) (db)",0,{"$f":"E27","v":0},"Minden díjazott előadás 1p",{"$nulls":6},"OTDK-n a témavezetők között megosztott pontszám. "]
[null,null,null,"TDK pályamunka bírálat",0,{"$f":"VLOOKUP(E28,Pontok!D1:E2,2,1)","v":0},"0-1","0p: =0","1p: ≥1"]
[null,null,"Demonstrátori tevékenység","Foglalkoztatott demonstrátorok (fő)",0,{"$f":"VLOOKUP(E29,Pontok!D1:E2,2,1)","v":0},"0-1","0p: =0","1p: ≥1"]
[null,null,"PhD hallgatók","Beiratkozott (doktori.hu) (fő)",0,{"$f":"VLOOKUP(E30,Pontok!G1:H5,2,1)","v":0},"0-4","0p: =0","0,5p: =0,5","1p: =1","1.5p: =1.5","2p: ≥2",null,"PhD témavezetők között megosztott pontszám"]
[null,null,null,"Ebből fokozatot szerzett (fő)",0,{"$f":"E31*5","v":0},"0-","Fokozatot szerző hallgató(k) száma x5",{"$nulls":5},"PhD témavezetők között megosztott pontszám"]
[null,null,"UTÁNPÓTLÁSNEVELÉS ÖSSZESEN",null,null,{"$f":"SUM(F25:F31)","v":0},"Ennek a részeredménynek nincs felső határa, de az Oktatás összpontszáma nem lépheti túl az 50 pontot (lásd 31. sor)"]
[null,"OKTATÁSI TELJESÍTMÉNY ÖSSZESEN (MAXIMUM 50 PONT)",null,null,null,{"$f":"IF((F24+F32)>50,50,F24+F32)","v":0}]
[{"$nulls":9},"Súlyfaktorok"]
["TUDOMÁNYOS TELJESÍTMÉNY","PUBLIKÁCIÓS TEVÉKENYSÉG \n\nMTMT adatbázis alapján","Közlemények\n\n1 tétel csak 1 helyre számolható el!","Első/utolsó/levelező szerzős nagy impaktú publikációk (10 impakt faktor feletti)",0,{"$f":"E35*15","v":0},"15p/db"]
[null,null,null,"Társszerzős nagy impaktú publikációk (10 impakt faktor feletti)",0,{"$f":"E36*7.5","v":0},"7.5p/db"]
[null,null,null,"Első/utolsó/levelező szerzős D1 publikációk",0,{"$f":"E37*5","v":0},"5p/db"]
[null,null,null,"Társszerzős D1 publikációk",0,{"$f":"E38*2.5","v":0},"2.5p/db"]
[null,null,null,"Első/utolsó/levelező szerzős Q1 publikációk",0,{"$f":"E39*4","v":0},"4p/db"]
[null,null,null,"Társszerzős Q1 publikációk",0,{"$f":"E40*2","v":0},"2p/db"]
[null,null,null,"Első/utolsó/levelező szerzős Q2 publikációk",0,{"$f":"E41*2.5","v":0},"2.5p/db"]
[null,null,null,"Társszerzős Q2 publikációk",0,{"$f":"E42*1","v":0},"1p/db"]
[null,null,null,"Első/utolsó/levelező szerzős Q3/Q4 publikációk",0,{"$f":"E43*1","v":0},"1p/db"]
[null,null,null,"Társszerzős Q3/Q4 publikációk",0,{"$f":"E44*0.5","v":0},"0.5p/db"]
[null,null,null,"Összes közlemények (in extensio)",0,{"$f":"VLOOKUP(E45,Pontok!AQ:AR,2,TRUE)","v":0},"0-3","0:≤4","1:≤6","2:<10","3:≥10",null,null,"Az MTMT-ben teljes tudományos besorolású, fentebb nem elszámolt folyóiratcikkek, Konferenciaközlemény és Recenzió/kritika kivételével."]
[null,null,null,"Besorolás \"scientometrics.org\" alapján","D4-D10",{"$f":"VLOOKUP(E46,Pontok!AT1:AU4,2,FALSE)","v":0},"3p: D1, 2p: D2, 1p:D3, 0p:D4-D10",{"$nulls":6},"Nem MTMT alapján, egyénileg kitöltendő."]
[null,null,null,"Teljes könyv",0,{"$f":"E47*15","v":0},"15p/db",{"$nulls":6},"Az MTMT-ben szakkönyv besorolású könyv. A felsőoktatási tankönyvek az Oktatási teljesítmény részben számolhatók el."]
[null,null,null,"Könyvszerkesztés",0,{"$f":"E48*4","v":0},"4p/db",{"$nulls":6},"Az MTMT-ben szakkönyv vagy tanulmánykötet besorolású könyv szerkesztése."]
[null,null,null,"Első/utolsó szerzős könyvfejezet",0,{"$f":"E49*2","v":0},"2p/db",{"$nulls":6},"Az MTMT-ben könyvfejezet vagy szaktanulmány besorolású könyvrészlet. A felsőoktatási tankönyvek részei az Oktatási teljesítmény részben számolhatók el."]
[null,null,null,"Társszerzős könyvfejezet",0,{"$f":"E50","v":0},"1p/db",{"$nulls":6},"Az MTMT-ben könyvfejezet vagy szaktanulmány besorolású könyvrészlet. A felsőoktatási tankönyvek részei az Oktatási teljesítmény részben számolhatók el."]
[null,null,"PUBLIKÁCIÓS TEVÉKENYSÉG ÖSSZESEN",null,null,{"$f":"SUM(F35:F50)","v":0},"Ennek a részeredménynek nincs felső határa, de a Tudományos összpontszám nem lépheti túl az 60 pontot (lásd 67. sor)"]
[null,"ÉLETMŰ\n\nMTMT adatbázis alapján valamint oklevelek csatolása","Tudományos teljesítmény életműre vonatkozó adatai","Független citáció a teljes életműre",0,{"$f":"LN(E52/20+1)","v":0},"ln(összes idézettség/20+1)",{"$nulls":6},"Az MTMT összefoglaló táblázatában szereplő összes független citáció darabszáma."]
[null,null,null,"Hirsch index ",0,{"$f":"E53/10","v":0},"Hirsch index / 10",{"$nulls":6},"Az MTMT összefoglaló táblázatában szereplő Hirsch index."]
[null,null,null,"PhD","Nem",{"$f":"IF(E54=\"Igen\",2,0)","v":0},"0/2","igen/nem"]
[null,null,null,"Habilitáció ","Nem",{"$f":"IF(E55=\"Igen\",2,0)","v":0},"0/2","igen/nem"]
[null,null,null,"MTA Doktori fokozat","Nem",{"$f":"IF(E56=\"Igen\",4,0)","v":0},"0/4","igen/nem"]
[null,null,null,"MTA tagság (csak rendes vagy levelező tagság)","Nem",{"$f":"IF(E57=\"Igen\",5,0)","v":0},"0/5","igen/nem","Köztestületi tagság nem értékelhető!"]
[null,null,"Szabadalom","Nemzetközi szabadalmak száma (megítélt/befogadott)",0,{"$f":"E58*1","v":0},"1p / szabadalom"]
[null,null,"ÉLETMŰ ÖSSZESEN",null,null,{"$f":"SUM(F52:F58)","v":0},"Ennek a részeredménynek nincs felső határa, de a Tudományos összpontszám nem lépheti túl az 60 pontot (lásd 67. sor)"]
[null,"PÁLYAZATI TEVÉKENYSÉG","Pályázatok, ipari együttműködések","Nemzetközi elbírálású pályázatok vezetője (db)",0,{"$f":"E60*5","v":0},"5p pályázatonként",null,null,"Pl. ERC grant"]
[null,null,null,"Hazai elbírálású pályázatok vezetője /operatív vezető (db)",0,{"$f":"E61*3","v":0},"3p pályázatonként",null,null,"Pl. OTKA"]
[null,null,null,"Nemzetközi elbírálású pályázatok résztvevője (db)",0,{"$f":"E62*2","v":0},"2p pályázatonként",null,null,"Pl. ERC grant"]
[null,null,null,"Hazai elbírálású pályázatok résztvevője (db)",0,{"$f":"E63","v":0},"1p pályázatonként",null,null,"Pl. OTKA"]
[null,null,null,"Egyetemi/kari elbírálású pályázatok (db)",0,{"$f":"E64","v":0},"1p pályázatonként",null,null,"pl Hetényi, Szent-Györgyi"]
[null,null,null,"Ipari együttműködések (KFI nyilvántartás)",0,{"$f":"E65*3","v":0},"3p / együttműködés"]
[null,null,"PÁLYAZATI TEVÉKENYSÉG ÖSSZESEN",null,null,{"$f":"SUM(F60:F65)","v":0},"Ennek a részeredménynek nincs felső határa, de a Tudományos összpontszám nem lépheti túl az 60 pontot (lásd 67. sor)"]
[null,"TUDOMÁNYOS TELJESÍTMÉNY ÖSSZESEN (MAXIMUM 60 PONT)",null,null,null,{"$f":"IF((F51+F59+F66)>60,60,F51+F59+F66)","v":0}]
[]
["HAZAI ÉS NEMZETKÖZI ELISMERTSÉG, LÁTHATÓSÁG","VEZETŐI TEVÉKENYSÉG","Vezető egyetemi, kari pozíció","Dékán, Rektor","Nem",{"$f":"IF(E69=\"Vezető\",6,IF(E69=\"Helyettes\",3,0))","v":0},"0/3/6","3p: bármelyikben helyettesi",null,null,"6p: bármelyikben vezetői"]
[null,null,null,"Tanszékvezetés","Nem",{"$f":"IF(E70=\"Vezető\",2,IF(E70=\"Helyettes\",1,0))","v":0},"0/1/2","2p: tanszékvezető, 1p: helyettes"]
[null,null,null,"Kari / Egyetemi bizottság elnök / Doktori iskola vezető","Nem",{"$f":"IF(E71=\"Igen\",2,0)","v":0},"0/2","igen/nem"]
[null,null,null,"Kari / Egyetemi bizottsági tagság","Nem",0,"0-2","igen/nem"]
[null,null,null,"Kari Tanács tagság","Nem",{"$f":"IF(E73=\"Igen\",2,0)","v":0},"0/2","igen/nem"]
[null,null,null,"Doktori iskola vezetés","Nem",{"$f":"IF(E74=\"Vezető\",2,IF(E74=\"Helyettes\",1,0))","v":0},"0/1/2","2p: Doktori iskola vezető, 1p: helyettes"]
[null,null,null,"Doktori program vezetés","Nem",{"$f":"IF(E75=\"Igen\",1,0)","v":0},"0/1","igen/nem"]
[null,null,null,"Egyetemi / kari / MTA /szakmai kitüntetések","Nem",0,"0/2","igen/nem"]
[null,null,"VEZETŐI TEVÉKENYSÉG ÖSSZESEN",null,null,{"$f":"SUM(F69:F76)","v":0},"Ennek a részeredménynek nincs felső határa, de a Láthatóság összpontszám nem lépheti túl az 25 pontot (lásd 84. sor)"]
[null,"LÁTHATÓSÁG","Hazai és nemzetközi láthatóság","Hazai, nemzetközi társaságban betöltött vezetői tisztség","Nincs",{"$f":"IF(E78=\"Elnök\",2,IF(E78=\"Elnökségi tag\",1,0))","v":0},"0/1/2","0p:=0","1p: elnökségi tag",null,"2p: elnök"]
[null,null,null,"Pályázati bírálati tevékenység, PhD védésben opponensi vagy elnöki szerep",0,{"$f":"VLOOKUP(E79,Pontok!AD1:AE5,2,1)","v":0},"0-2","0p:=0","1p:<4","2p:≥4"]
[null,null,null,"Egyéb fontos pozíció (pl. NFKI/OTKA, ETT, NOKK, Orvosi Kamara, Szakmai kollégium)","Nem",{"$f":"IF(E80=\"Igen\",1,0)","v":0},"0/1","igen/nem"]
[null,null,null,"Nemzeti/nemzetközi kongresszus, nyári egyetem szervezés",0,{"$f":"VLOOKUP(E81,Pontok!AG1:AH3,2,1)","v":0},"0-2","0:=0","1:=1","2:≥2"]
[null,null,null,"MTA bizottsági funkciók / tagság","Nem",{"$f":"IF(E82=\"Igen\",1,0)","v":0},"0/1","igen/nem"]
[null,null,"LÁTHATÓSÁG ÖSSZESEN",null,null,{"$f":"SUM(F78:F82)","v":0},"Ennek a részeredménynek nincs felső határa, de a Láthatóság összpontszám nem lépheti túl az 25 pontot (lásd 84. sor)"]
[null,"HAZAI ÉS NEMZETKÖZI ELISMERTSÉG, LÁTHATÓSÁG ÖSSZESEN (MAXIMUM 25 PONT)",null,null,null,{"$f":"IF((F77+F83)>25,25,F77+F83)","v":0}]
[]
["Összes pontszám (maximum 100 pont):",{"$nulls":4},{"$f":"IF((F33+F67+F84)>100,100,F33+F67+F84)","v":0}]
[]
["A megadott adatok és igazolások mindenben megfelelnek a valóságnak."]
[]
[]
["Dátum:",null,null,"oktató aláírása"]
[]
["Jóváhagyom az adattáblát."]
[]
["Dátum:",null,null,"szervezeti egységvezető aláírása"]

{"sheet":"Pontok","index":1,"n_rows":34,"n_cols":47,"rows_kept":34,"cut":false,"hidden":true,"merged":[]}
[0,0,null,0,0,null,0,0,null,0,{"$f":"J1/2","v":0},null,"Egyetemi tanársegéd",0.5,12,null,0,0,null,0,0,null,0,0,null,"Vezető",6,null,null,0,0,null,0,0,null,0,0,null,"0:≤4","1:≤6","2:<10","3:≥10",0,0,null,"D1",3]
[0.5,0.5,null,1,1,null,0.5,0.5,null,1,{"$f":"J2/2","v":0.5},null,"Egyetemi adjunktus",{"$f":"$N$1*$O$1/O2","v":0.6},10,null,0.5,0.5,null,1,3,null,1,1,null,"Helyettes",3,null,null,1,1,null,1,1,null,1,1,{"$nulls":5},5,1,null,"D2",2]
[1,1,{"$nulls":4},1,1,null,2,1,null,"Egyetemi docens",{"$f":"$N$1*$O$1/O3","v":0.75},8,null,1,1,null,2,4,null,2,1,{"$nulls":5},2,1,null,2,2,null,2,2,{"$nulls":5},7,2,null,"D3",1]
[1.5,1,{"$nulls":4},1.5,1.5,null,3,1.5,null,"Egyetemi tanár",1,6,null,1.5,1,null,3,5,null,3,2,{"$nulls":5},3,1,{"$nulls":11},10,3,null,"D4-D10",0]
[2,1,{"$nulls":4},2,2,null,4,2,null,"Tudományos segédmunkatárs",0.5,12,null,2,1.5,{"$nulls":4},4,2,{"$nulls":5},4,2]
[2.5,2,{"$nulls":7},5,2.5,null,"Tudományos munkatárs",{"$f":"$N$1*$O$1/O6","v":0.6},10,null,2.5,1.5,{"$nulls":4},5,2]
[{"$nulls":9},6,3,null,"Tudományos főmunkatárs",{"$f":"$N$1*$O$1/O7","v":0.75},8,null,3,2,{"$nulls":4},6,3]
[{"$nulls":9},7,3.5,null,"Tudományos tanácsadó",1,6]
[{"$nulls":9},8,4]
[{"$nulls":9},9,4.5]
[{"$nulls":9},10,5]
[{"$nulls":9},11,5.5]
[{"$nulls":9},12,6,{"$nulls":14},"0p:=0","1p:<4","2p:≥4"]
[{"$nulls":9},13,6.5]
[{"$nulls":9},14,7]
[{"$nulls":9},15,7.5]
[{"$nulls":9},16,8,null,"1p: 1-2 tárgy, 2p: 2-5 tárgy, 3p: >5 tárgy"]
[{"$nulls":9},17,8.5]
[{"$nulls":9},18,9]
[{"$nulls":9},19,9.5]
[{"$nulls":9},20,{"$f":"J21/2","v":10}]
[{"$nulls":9},1000,10]
{"$rows_empty":11}
["Protect jelszó: alma"]